[Event "Kwalificatie NJK B Groningen"]
[Site "Hoogkerk, Netherlands"]
[Date "2023.02.19"]
[Round "6.7"]
[White "Lee, Jungmin"]
[Black "Van Hesselingen, Guido"]
[Result "0-1"]
[TimeControl "55 min. + 10 sec./zet"]
[WhiteElo "1600"]
[BlackElo "1908"]

1. d4 {[%clk 00:55:17]} {[%emt 00:00:45]} Nf6 {[%clk 00:55:13]} 2. Nc3 {[%clk
00:55:19]} d5 {[%clk 00:55:11]} 3. Bf4 {[%clk 00:55:22]} {[%emt 00:00:05]} c5
{[%clk 00:54:23]} {[%emt 00:00:45]} 4. e3 {[%clk 00:55:24]} {[%emt 00:00:17]}
e6 {[%clk 00:52:45]} {[%emt 00:02:21]} 5. Nb5 {[%clk 00:55:22]} Na6 {[%clk
00:52:14]} {[%emt 00:00:11]} 6. Nf3 {[%clk 00:55:22]} {[%emt 00:01:14]} Be7
{[%clk 00:46:41]} {[%emt 00:05:22]} 7. dxc5 {[%clk 00:53:30]} {[%emt 00:01:19]}
Bxc5 {[%clk 00:46:20]} {[%emt 00:00:30]} 8. Nc3 {[%clk 00:53:22]} {[%emt
00:00:23]} O-O {[%clk 00:43:55]} {[%emt 00:03:37]} 9. Bxa6 {[%clk 00:53:24]}
bxa6 {[%clk 00:44:02]} 10. O-O {[%clk 00:51:30]} {[%emt 00:01:13]} Bd7 {[%clk
00:43:05]} {[%emt 00:01:25]} 11. Qd3 {[%clk 00:47:18]} {[%emt 00:04:34]} Qb6
{[%clk 00:42:03]} {[%emt 00:01:07]} 12. Be5 {[%clk 00:43:45]} {[%emt 00:03:14]}
Ne4 {[%clk 00:37:04]} {[%emt 00:05:13]} 13. Nxe4 {[%clk 00:42:45]} {[%emt
00:01:21]} Bb5 {[%clk 00:36:58]} {[%emt 00:00:10]} 14. Nxc5 {[%clk 00:33:43]}
{[%emt 00:09:47]} Bxd3 {[%clk 00:36:32]} 15. Nxd3 {[%clk 00:33:47]} {[%emt
00:00:23]} f6 {[%clk 00:34:58]} {[%emt 00:01:33]} 16. Bd4 {[%clk 00:33:29]}
{[%emt 00:00:20]} Qb5 {[%clk 00:34:39]} {[%emt 00:00:23]} 17. a4 {[%clk
00:32:07]} {[%emt 00:02:25]} Qc4 {[%clk 00:29:25]} {[%emt 00:05:20]} 18. Bc3
{[%clk 00:31:49]} e5 {[%clk 00:25:58]} {[%emt 00:03:37]} 19. Nd2 {[%clk
00:31:34]} {[%emt 00:00:24]} Qc6 {[%clk 00:25:42]} {[%emt 00:00:27]} 20. Nb4
{[%clk 00:31:04]} {[%emt 00:00:26]} Qb7 {[%clk 00:25:19]} {[%emt 00:00:34]} 21.
Nb3 {[%clk 00:30:45]} {[%emt 00:01:06]} Rfd8 {[%clk 00:21:16]} {[%emt
00:04:27]} 22. Nc5 {[%clk 00:30:12]} Qb6 {[%clk 00:19:27]} {[%emt 00:01:42]} 23.
Ncxa6 {[%clk 00:28:53]} {[%emt 00:02:06]} Rac8 {[%clk 00:17:51]} {[%emt
00:01:42]} 24. a5 {[%clk 00:28:08]} {[%emt 00:00:24]} Qb5 {[%clk 00:16:09]}
{[%emt 00:02:30]} 25. Rfd1 {[%clk 00:28:05]} Rd6 {[%clk 00:15:36]} {[%emt
00:00:18]} 26. Rd3 {[%clk 00:27:09]} {[%emt 00:01:40]} Rxa6 {[%clk 00:10:28]}
{[%emt 00:05:16]} 27. Nxa6 {[%clk 00:26:54]} Qxa6 {[%clk 00:10:33]} 28. Rxd5
{[%clk 00:26:54]} {[%emt 00:00:25]} Qc4 {[%clk 00:09:42]} {[%emt 00:00:50]} 29.
Rad1 {[%clk 00:26:43]} {[%emt 00:01:09]} a6 {[%clk 00:09:25]} 30. h3 {[%clk
00:26:21]} {[%emt 00:00:07]} h6 {[%clk 00:08:16]} {[%emt 00:01:45]} 31. Rd7
{[%clk 00:26:21]} Rc7 {[%clk 00:08:06]} {[%emt 00:00:05]} 32. R7d6 {[%clk
00:25:00]} {[%emt 00:01:27]} Qe2 {[%clk 00:06:37]} {[%emt 00:04:07]} 33. R1d2
{[%clk 00:24:47]} Qc4 {[%clk 00:05:53]} 34. Rb6 {[%clk 00:23:21]} {[%emt
00:01:16]} Kh7 {[%clk 00:04:27]} {[%emt 00:00:48]} 35. Rdd6 {[%clk 00:23:16]}
{[%emt 00:00:11]} Ra7 {[%clk 00:04:28]} {[%emt 00:00:36]} 36. Rdc6 {[%clk
00:21:39]} {[%emt 00:01:58]} Qe2 {[%clk 00:04:33]} 37. Bb4 {[%clk 00:19:43]}
{[%emt 00:02:31]} h5 {[%clk 00:03:41]} {[%emt 00:00:09]} 38. h4 {[%clk
00:17:08]} {[%emt 00:03:04]} Qd1+ {[%clk 00:03:21]} {[%emt 00:00:14]} 39. Kh2
{[%clk 00:17:05]} {[%emt 00:00:10]} Qf1 {[%clk 00:03:24]} {[%emt 00:00:43]} 40.
f3 {[%clk 00:16:15]} {[%emt 00:00:36]} Qf2 {[%clk 00:01:17]} {[%emt 00:03:01]}
41. e4 {[%clk 00:15:36]} Qxh4+ {[%clk 00:00:52]} {[%emt 00:01:05]} 42. Kg1
{[%clk 00:15:38]} Qg3 {[%clk 00:00:48]} 43. Kf1 {[%clk 00:15:29]} {[%emt
00:00:32]} h4 {[%clk 00:00:44]} 44. Be1 {[%clk 00:15:29]} Qh2 {[%clk 00:00:41]}
{[%emt 00:00:14]} 45. Bf2 {[%clk 00:15:23]} {[%emt 00:00:10]} Qh1+ {[%clk
00:00:34]} {[%emt 00:00:13]} 46. Bg1 {[%clk 00:15:21]} {[%emt 00:00:39]} h3
{[%clk 00:00:43]} 47. gxh3 {[%clk 00:14:55]} {[%emt 00:00:12]} Qxf3+ {[%clk
00:00:52]} {[%emt 00:00:04]} 48. Bf2 {[%clk 00:14:35]} {[%emt 00:00:55]} Qxe4
{[%clk 00:00:54]} 49. Rd6 {[%clk 00:14:05]} {[%emt 00:00:19]} Qh1+ {[%clk
00:00:40]} {[%emt 00:00:26]} 50. Ke2 {[%clk 00:13:48]} {[%emt 00:01:04]} Qe4+
{[%clk 00:00:49]} 51. Kf1 {[%clk 00:13:47]} f5 {[%clk 00:00:42]} 52. Rbc6
{[%clk 00:12:40]} {[%emt 00:02:20]} Rb7 {[%clk 00:00:30]} 53. b3 {[%clk
00:11:59]} {[%emt 00:00:09]} Rb4 {[%clk 00:00:24]} {[%emt 00:00:12]} 54. Kg1
{[%clk 00:11:29]} {[%emt 00:00:35]} Qf3 {[%clk 00:00:19]} {[%emt 00:00:59]} 55.
Rg6 {[%clk 00:10:48]} {[%emt 00:00:09]} Qxh3 {[%clk 00:00:15]} {[%emt
00:00:17]} 56. Rg3 {[%clk 00:10:36]} {[%emt 00:00:16]} Rg4 {[%clk 00:00:18]}
{[%emt 00:00:12]} 57. Rcc3 {[%clk 00:10:18]} {[%emt 00:01:19]} f4 {[%clk
00:00:21]} 58. Rxg4 Qxg4+ 59. Kh2 {[%clk 00:09:51]} f3 {[%clk 00:00:28]} {[%emt
00:01:00]} 60. Bg3 {[%clk 00:09:19]} e4 {[%clk 00:00:37]} 61. Rc4 {[%clk
00:08:29]} {[%emt 00:00:55]} Qh5+ {[%clk 00:00:38]} {[%emt 00:00:30]} 62. Kg1
{[%clk 00:06:44]} {[%emt 00:01:33]} Qh3 {[%clk 00:00:42]} {[%emt 00:00:38]} 63.
Kf2 {[%clk 00:06:20]} {[%emt 00:00:27]} Qg2+ {[%clk 00:00:51]} 0-1

[Event "Kwalificatie NJK B Groningen"]
[Site "Hoogkerk, Netherlands"]
[Date "2023.02.19"]
[Round "6.8"]
[White "Van Arendonk, Polle"]
[Black "Kleibeuker, Mika"]
[Result "1-0"]
[TimeControl "55 min. + 10 sec./zet"]
[WhiteElo "1906"]
[BlackElo "1698"]

1. e4 {[%clk 00:55:18]} {[%emt 00:00:17]} c6 {[%clk 00:55:16]} 2. d4 {[%clk
00:55:27]} d5 {[%clk 00:55:22]} 3. Nc3 {[%clk 00:55:35]} dxe4 {[%clk 00:55:29]}
4. Nxe4 {[%clk 00:55:42]} Bf5 {[%clk 00:55:35]} 5. Ng3 {[%clk 00:55:50]} Bg6
{[%clk 00:55:43]} 6. h4 {[%clk 00:55:57]} h6 {[%clk 00:55:51]} 7. Nf3 {[%clk
00:56:04]} e6 {[%clk 00:55:58]} 8. h5 {[%clk 00:56:11]} Bh7 {[%clk 00:56:06]} 9.
Bd3 {[%clk 00:56:19]} {[%emt 00:00:05]} Bxd3 {[%clk 00:56:12]} 10. Qxd3 {[%clk
00:56:26]} Nf6 {[%clk 00:56:19]} 11. Bd2 {[%clk 00:56:33]} {[%emt 00:00:05]}
Be7 {[%clk 00:56:04]} {[%emt 00:00:30]} 12. O-O-O {[%clk 00:56:28]} {[%emt
00:00:09]} O-O {[%clk 00:55:10]} {[%emt 00:00:59]} 13. Ne4 {[%clk 00:56:07]}
{[%emt 00:00:55]} c5 {[%clk 00:55:17]} 14. Nxf6+ {[%clk 00:53:10]} {[%emt
00:03:05]} Bxf6 {[%clk 00:55:21]} 15. Bc3 {[%clk 00:53:11]} {[%emt 00:00:23]}
cxd4 {[%clk 00:50:23]} {[%emt 00:05:14]} 16. Bxd4 {[%clk 00:52:47]} {[%emt
00:00:18]} Bxd4 {[%clk 00:50:18]} 17. Qxd4 {[%clk 00:52:55]} {[%emt 00:00:25]}
Nc6 {[%clk 00:48:40]} {[%emt 00:01:33]} 18. Qxd8 {[%clk 00:51:26]} {[%emt
00:02:03]} Rfxd8 {[%clk 00:48:44]} 19. c3 {[%clk 00:51:15]} Kf8 {[%clk
00:47:38]} {[%emt 00:01:09]} 20. Kc2 {[%clk 00:49:46]} {[%emt 00:02:26]} Ke7
{[%clk 00:47:15]} 21. Rhe1 {[%clk 00:47:50]} {[%emt 00:02:54]} Rac8 {[%clk
00:45:44]} {[%emt 00:01:06]} 22. a3 {[%clk 00:47:06]} {[%emt 00:00:27]} Kf6
{[%clk 00:41:41]} {[%emt 00:04:25]} 23. g4 {[%clk 00:46:16]} {[%emt 00:00:48]}
Ke7 {[%clk 00:37:57]} {[%emt 00:03:53]} 24. Rxd8 {[%clk 00:45:36]} {[%emt
00:00:50]} Rxd8 {[%clk 00:37:56]} {[%emt 00:00:12]} 25. Ne5 {[%clk 00:45:41]}
{[%emt 00:00:36]} Nxe5 {[%clk 00:29:20]} {[%emt 00:08:15]} 26. Rxe5 {[%clk
00:45:46]} {[%emt 00:00:29]} Kf6 {[%clk 00:28:31]} {[%emt 00:01:12]} 27. f4
{[%clk 00:45:20]} g5 {[%clk 00:28:28]} {[%emt 00:00:26]} 28. hxg6 {[%clk
00:44:54]} {[%emt 00:00:48]} fxg6 {[%clk 00:28:30]} 29. Rb5 {[%clk 00:42:23]}
{[%emt 00:02:26]} b6 {[%clk 00:28:35]} {[%emt 00:00:10]} 30. g5+ {[%clk
00:41:00]} {[%emt 00:01:27]} hxg5 {[%clk 00:28:41]} {[%emt 00:00:05]} 31. fxg5+
{[%clk 00:41:07]} {[%emt 00:00:05]} Ke7 {[%clk 00:28:37]} {[%emt 00:00:18]} 32.
Re5 {[%clk 00:31:09]} {[%emt 00:10:15]} Rf8 {[%clk 00:18:25]} {[%emt 00:10:22]}
33. Re2 {[%clk 00:29:03]} {[%emt 00:02:17]} Rf5 {[%clk 00:18:12]} {[%emt
00:00:29]} 34. Rg2 {[%clk 00:29:10]} Kd6 {[%clk 00:18:03]} {[%emt 00:00:09]} 35.
Kd3 {[%clk 00:28:52]} {[%emt 00:00:18]} Ke5 {[%clk 00:16:34]} {[%emt 00:01:44]}
36. Ke3 {[%clk 00:24:36]} {[%emt 00:04:21]} Kd5 {[%clk 00:16:27]} {[%emt
00:00:18]} 37. Rg4 {[%clk 00:22:52]} {[%emt 00:01:57]} Kc5 {[%clk 00:14:02]}
{[%emt 00:02:31]} 38. a4 {[%clk 00:21:48]} {[%emt 00:01:22]} e5 {[%clk
00:12:51]} {[%emt 00:01:55]} 39. b4+ {[%clk 00:17:19]} {[%emt 00:04:38]} Kd6
{[%clk 00:12:15]} {[%emt 00:00:05]} 40. Ke4 {[%clk 00:12:43]} {[%emt 00:04:46]}
Rf1 {[%clk 00:12:09]} {[%emt 00:00:16]} 41. Rg3 {[%clk 00:11:10]} {[%emt
00:01:43]} Re1+ {[%clk 00:11:53]} {[%emt 00:00:34]} 42. Kd3 {[%clk 00:08:30]}
{[%emt 00:03:08]} Ra1 {[%clk 00:11:43]} 43. Rf3 {[%clk 00:08:14]} {[%emt
00:00:20]} Rxa4 {[%emt 00:03:58]} 44. Rf6+ Ke7 {[%clk 00:09:45]} 45. Rxg6
{[%clk 00:08:18]} Ra1 {[%clk 00:09:35]} 46. Ke4 {[%clk 00:07:27]} Re1+ {[%clk
00:08:27]} {[%emt 00:01:45]} 47. Kf5 {[%clk 00:06:52]} Kf7 {[%clk 00:07:07]}
{[%emt 00:01:41]} 48. Rf6+ {[%clk 00:06:51]} Kg7 {[%clk 00:07:11]} {[%emt
00:00:05]} 49. Rc6 {[%clk 00:05:07]} {[%emt 00:01:59]} Re3 {[%clk 00:06:48]}
{[%emt 00:00:24]} 50. Rc7+ {[%clk 00:05:11]} {[%emt 00:00:49]} Kf8 {[%clk
00:04:24]} {[%emt 00:01:59]} 51. b5 {[%clk 00:02:54]} {[%emt 00:02:48]} e4
{[%clk 00:03:38]} {[%emt 00:00:58]} 52. Kf4 {[%clk 00:02:37]} {[%emt 00:00:08]}
Re1 {[%clk 00:03:08]} {[%emt 00:00:47]} 53. Rxa7 {[%clk 00:00:53]} {[%emt
00:02:38]} Rb1 {[%clk 00:03:16]} 54. c4 {[%clk 00:00:41]} Re1 {[%clk 00:01:49]}
{[%emt 00:01:13]} 55. Rb7 {[%clk 00:00:28]} {[%emt 00:01:10]} Rc1 {[%clk
00:01:15]} 56. Rxb6 {[%clk 00:00:25]} Rxc4 {[%clk 00:01:23]} 57. Rb7 {[%clk
00:00:21]} {[%emt 00:00:23]} e3+ {[%clk 00:01:17]} {[%emt 00:00:05]} 58. Kxe3
{[%clk 00:00:21]} {[%emt 00:00:09]} Rg4 {[%clk 00:01:26]} 59. Rc7 {[%clk
00:00:20]} {[%emt 00:00:19]} Ke8 {[%clk 00:00:15]} {[%emt 00:02:19]} 60. b6
{[%clk 00:00:18]} Kd8 {[%clk 00:00:17]} 61. Rg7 {[%clk 00:00:20]} Kc8 {[%clk
00:00:20]} 62. b7+ {[%clk 00:00:23]} Kb8 {[%clk 00:00:29]} 63. Kf3 {[%clk
00:00:29]} Rg1 {[%clk 00:00:25]} {[%emt 00:00:05]} 64. g6 {[%clk 00:00:27]}
{[%emt 00:00:35]} Rg5 {[%clk 00:00:15]} 65. Kf4 {[%clk 00:00:30]} Rg1 {[%clk
00:00:23]} 66. Ke5 {[%clk 00:00:32]} {[%emt 00:00:22]} Rg2 {[%clk 00:00:15]} 67.
Ke6 {[%clk 00:00:24]} {[%emt 00:00:34]} Rg1 {[%clk 00:00:11]} 68. Kf6 {[%clk
00:00:17]} {[%emt 00:00:18]} Rg2 {[%clk 00:00:17]} {[%emt 00:00:04]} 69. Rf7
{[%clk 00:00:25]} {[%emt 00:00:05]} Rg1 {[%clk 00:00:18]} {[%emt 00:00:04]} 70.
Kg7 {[%clk 00:00:32]} {[%emt 00:00:09]} Rg2 {[%clk 00:00:22]} {[%emt 00:00:09]}
71. Kh7 {[%clk 00:00:39]} Rh2+ {[%clk 00:00:30]} 72. Kg8 {[%clk 00:00:48]} Rg2
{[%clk 00:00:31]} {[%emt 00:00:06]} 73. g7 {[%clk 00:00:56]} {[%emt 00:00:34]}
Rd2 {[%clk 00:00:17]} 74. Kf8 {[%clk 00:00:56]} {[%emt 00:00:34]} 1-0

[Event "Kwalificatie NJK B Groningen"]
[Site "Hoogkerk, Netherlands"]
[Date "2023.02.19"]
[Round "6.9"]
[White "Blok, Xaveer"]
[Black "Lopes, Samuel"]
[Result "1-0"]
[TimeControl "55 min. + 10 sec./zet"]
[WhiteElo "1581"]
[BlackElo "1826"]

1. e4 {[%emt 00:27:43]} c5 2. c3 {[%emt 00:00:28]} d5 3. exd5 Qxd5 4. Nf3
{[%emt 00:00:13]} Bg4 {[%emt 00:00:57]} 5. Be2 Nc6 {[%emt 00:00:10]} 6. Na3
{[%emt 00:00:37]} a6 {[%emt 00:00:13]} 7. Nc2 {[%emt 00:01:08]} Qd8 {[%emt
00:00:37]} 8. O-O {[%emt 00:01:09]} Nf6 {[%emt 00:01:29]} 9. d4 {[%emt
00:01:18]} e6 {[%emt 00:00:55]} 10. h3 {[%emt 00:01:12]} Bh5 {[%emt 00:00:57]}
11. Bf4 {[%emt 00:02:57]} cxd4 12. Ncxd4 {[%emt 00:01:15]} Nxd4 {[%emt
00:01:34]} 13. Nxd4 {[%emt 00:00:04]} Bxe2 {[%emt 00:00:20]} 14. Qxe2 {[%emt
00:01:21]} Be7 {[%emt 00:01:11]} 15. Rad1 {[%emt 00:00:55]} Qb6 {[%emt
00:02:12]} 16. Rfe1 {[%emt 00:01:09]} Nd5 {[%emt 00:02:50]} 17. Nxe6 {[%emt
00:04:01]} Qxe6 {[%emt 00:19:15]} 18. Rxd5 O-O {[%emt 00:03:39]} 19. Re5 {[%emt
00:03:18]} Qf6 {[%emt 00:01:27]} 20. Rxe7 {[%emt 00:02:52]} Qxf4 21. Rxb7 h6 22.
Rb4 {[%emt 00:05:23]} Qd6 {[%emt 00:01:06]} 23. Rd1 {[%emt 00:00:57]} Qc5
{[%emt 00:01:54]} 24. Qc4 {[%emt 00:01:34]} Qh5 25. Rd6 {[%emt 00:01:44]} Qg5
{[%emt 00:03:05]} 26. Rxa6 {[%emt 00:01:31]} Rad8 {[%emt 00:00:39]} 27. Qf4
{[%emt 00:01:14]} Qe7 {[%emt 00:01:03]} 28. Re4 {[%emt 00:02:18]} Qb7 {[%emt
00:00:31]} 29. Raa4 {[%emt 00:02:51]} Qxb2 {[%emt 00:00:17]} 30. Qg3 {[%emt
00:00:54]} Qb1+ {[%emt 00:01:36]} 31. Kh2 Rd1 32. Qf3 {[%emt 00:01:22]} Qc2
{[%emt 00:04:25]} 33. Rg4 {[%emt 00:01:29]} f5 {[%emt 00:04:05]} 34. Rg6 {[%emt
00:02:07]} Qxa4 {[%emt 00:01:22]} 35. Qg3 {[%emt 00:01:40]} Rd7 {[%emt
00:02:44]} 36. Rxh6 {[%emt 00:01:06]} Qxa2 {[%emt 00:00:48]} 37. Qg6 {[%emt
00:00:39]} 1-0

[Event "Kwalificatie NJK B Groningen"]
[Site "Hoogkerk, Netherlands"]
[Date "2023.02.19"]
[Round "7.1"]
[White "Van Foreest, Nanne"]
[Black "Ritzerveld, Noah"]
[Result "1/2-1/2"]
[TimeControl "55 min. + 10 sec./zet"]
[WhiteElo "1862"]
[BlackElo "1868"]

1. e4 {[%clk 00:55:18]} e5 {[%clk 00:55:14]} 2. Nf3 {[%clk 00:55:27]} Nc6 3.
Bc4 {[%clk 00:55:35]} {[%emt 00:00:55]} Nf6 {[%clk 00:55:24]} 4. d3 Bc5 {[%clk
00:55:29]} 5. c3 {[%clk 00:55:51]} a6 {[%clk 00:55:31]} 6. a4 {[%clk 00:55:58]}
d6 {[%clk 00:55:19]} {[%emt 00:00:13]} 7. O-O {[%clk 00:56:04]} Ba7 {[%clk
00:55:21]} 8. Nbd2 {[%clk 00:56:07]} {[%emt 00:00:15]} O-O {[%clk 00:55:09]}
{[%emt 00:00:06]} 9. Re1 {[%clk 00:56:14]} {[%emt 00:00:09]} h6 {[%clk
00:54:51]} {[%emt 00:00:18]} 10. Nf1 {[%clk 00:56:21]} {[%emt 00:00:10]} Re8
{[%clk 00:54:09]} {[%emt 00:01:42]} 11. Ng3 {[%clk 00:56:29]} Be6 {[%clk
00:52:28]} {[%emt 00:00:58]} 12. Bxe6 {[%clk 00:56:34]} {[%emt 00:00:55]} Rxe6
{[%clk 00:52:34]} 13. b4 {[%clk 00:56:40]} d5 {[%clk 00:48:14]} {[%emt
00:04:50]} 14. Qc2 {[%clk 00:56:43]} Qd7 {[%clk 00:42:58]} {[%emt 00:05:06]} 15.
Bb2 {[%clk 00:56:16]} {[%emt 00:00:09]} Rae8 {[%clk 00:33:49]} {[%emt
00:10:03]} 16. b5 {[%clk 00:53:09]} {[%emt 00:02:41]} Ne7 {[%clk 00:33:13]}
{[%emt 00:01:01]} 17. Nf5 {[%clk 00:46:10]} {[%emt 00:07:21]} Ng6 {[%clk
00:28:31]} {[%emt 00:04:27]} 18. h3 {[%clk 00:42:49]} {[%emt 00:03:19]} Nf4
{[%clk 00:26:51]} {[%emt 00:02:36]} 19. Rad1 {[%clk 00:34:45]} {[%emt
00:07:32]} axb5 {[%clk 00:25:36]} {[%emt 00:01:58]} 20. axb5 {[%clk 00:30:53]}
{[%emt 00:03:17]} dxe4 {[%clk 00:23:25]} {[%emt 00:03:21]} 21. dxe4 {[%clk
00:30:33]} Qxb5 {[%clk 00:22:44]} {[%emt 00:00:21]} 22. c4 {[%clk 00:28:49]}
{[%emt 00:02:09]} Qc5 {[%clk 00:20:45]} {[%emt 00:02:41]} 23. Bc1 {[%clk
00:24:39]} {[%emt 00:03:58]} Qf8 {[%clk 00:10:49]} {[%emt 00:09:51]} 24. Bxf4
{[%clk 00:20:36]} {[%emt 00:04:05]} exf4 {[%clk 00:10:52]} {[%emt 00:00:30]} 25.
e5 {[%clk 00:19:06]} {[%emt 00:01:14]} Nh5 {[%clk 00:09:41]} {[%emt 00:01:21]}
26. Rd7 {[%clk 00:15:53]} {[%emt 00:03:24]} g6 {[%clk 00:04:46]} {[%emt
00:05:07]} 27. N5d4 {[%clk 00:14:36]} {[%emt 00:01:24]} Bxd4 {[%clk 00:04:26]}
{[%emt 00:01:48]} 28. Rxd4 {[%clk 00:13:26]} {[%emt 00:00:35]} Ng7 {[%clk
00:04:12]} {[%emt 00:00:45]} 29. Rd7 {[%clk 00:13:14]} Qc5 {[%clk 00:04:12]} 30.
Rb1 {[%clk 00:12:26]} {[%emt 00:00:36]} b6 {[%clk 00:03:58]} {[%emt 00:00:33]}
31. Rb5 {[%clk 00:11:37]} {[%emt 00:02:37]} Qc6 {[%clk 00:04:03]} 32. Rbd5
{[%clk 00:09:49]} {[%emt 00:00:17]} Nf5 {[%clk 00:04:11]} {[%emt 00:00:33]} 33.
Qa2 {[%clk 00:07:39]} {[%emt 00:01:51]} Kg7 {[%clk 00:04:11]} {[%emt 00:00:19]}
34. Rd1 {[%clk 00:06:28]} {[%emt 00:01:48]} Ra8 {[%clk 00:04:04]} 35. Qb3
{[%clk 00:05:22]} {[%emt 00:01:23]} Re7 {[%clk 00:02:56]} {[%emt 00:00:53]} 36.
Qc3 {[%clk 00:04:06]} {[%emt 00:01:22]} Kh7 {[%clk 00:02:36]} {[%emt 00:00:51]}
37. Rxe7 {[%clk 00:03:24]} {[%emt 00:00:35]} Nxe7 {[%clk 00:02:44]} {[%emt
00:00:32]} 38. Nd4 {[%clk 00:03:05]} {[%emt 00:00:05]} Qd7 {[%clk 00:02:30]}
{[%emt 00:00:36]} 39. Qf3 {[%clk 00:02:41]} {[%emt 00:00:54]} Rd8 {[%clk
00:02:29]} 40. Qxf4 {[%clk 00:02:39]} Nf5 {[%clk 00:01:28]} {[%emt 00:01:06]}
41. Kh2 {[%clk 00:01:56]} {[%emt 00:00:45]} Nxd4 {[%clk 00:01:35]} 42. Rxd4
{[%clk 00:02:06]} Qxd4 {[%clk 00:01:21]} {[%emt 00:00:43]} 43. Qxf7+ {[%clk
00:02:14]} {[%emt 00:00:09]} Kh8 {[%clk 00:01:23]} 44. Qf6+ {[%clk 00:02:23]}
Kh7 {[%clk 00:01:29]} 1/2-1/2

[Event "Kwalificatie NJK B Groningen"]
[Site "Hoogkerk, Netherlands"]
[Date "2023.02.19"]
[Round "7.2"]
[White "Terlouw, Wouter"]
[Black "Roorda, Cas"]
[Result "0-1"]
[TimeControl "55 min. + 10 sec./zet"]
[WhiteElo "1925"]
[BlackElo "1654"]

1. Nf3 {[%clk 00:55:17]} {[%emt 00:00:03]} Nf6 {[%clk 00:55:07]} {[%emt
00:00:14]} 2. d4 {[%clk 00:55:21]} {[%emt 00:00:05]} e6 {[%clk 00:55:05]}
{[%emt 00:00:13]} 3. c4 {[%clk 00:55:27]} {[%emt 00:00:05]} d5 {[%clk
00:55:10]} {[%emt 00:00:04]} 4. Nc3 {[%clk 00:55:32]} {[%emt 00:00:04]} Be7
{[%clk 00:54:38]} {[%emt 00:00:43]} 5. Bg5 {[%clk 00:55:36]} {[%emt 00:00:06]}
c6 {[%clk 00:54:33]} {[%emt 00:00:15]} 6. e3 {[%clk 00:55:39]} {[%emt
00:00:07]} Nbd7 {[%clk 00:54:38]} {[%emt 00:00:05]} 7. Bd3 {[%clk 00:55:34]}
{[%emt 00:00:15]} h6 {[%clk 00:54:11]} {[%emt 00:00:36]} 8. Bh4 {[%clk
00:55:28]} {[%emt 00:00:15]} O-O {[%clk 00:53:43]} {[%emt 00:00:39]} 9. O-O
{[%clk 00:55:30]} {[%emt 00:00:08]} dxc4 {[%clk 00:44:38]} {[%emt 00:09:16]} 10.
Bxc4 {[%clk 00:55:35]} {[%emt 00:00:05]} a6 {[%clk 00:43:31]} {[%emt 00:01:18]}
11. a4 {[%clk 00:54:52]} {[%emt 00:00:52]} c5 {[%clk 00:37:03]} {[%emt
00:06:38]} 12. Qc2 {[%clk 00:53:11]} {[%emt 00:01:51]} cxd4 {[%clk 00:33:31]}
{[%emt 00:03:43]} 13. Nxd4 {[%clk 00:52:49]} {[%emt 00:00:31]} Qc7 {[%clk
00:32:37]} {[%emt 00:01:05]} 14. Ba2 {[%clk 00:50:30]} {[%emt 00:02:28]} Bd6
{[%clk 00:30:24]} {[%emt 00:02:24]} 15. Bg3 {[%clk 00:49:41]} {[%emt 00:00:58]}
Bxg3 {[%clk 00:30:24]} {[%emt 00:00:10]} 16. hxg3 {[%clk 00:49:45]} {[%emt
00:00:06]} b6 {[%clk 00:29:30]} {[%emt 00:01:03]} 17. Rac1 {[%clk 00:47:07]}
{[%emt 00:02:48]} Bb7 {[%clk 00:28:52]} {[%emt 00:00:49]} 18. Qe2 {[%clk
00:46:17]} {[%emt 00:00:57]} Rac8 {[%clk 00:23:47]} {[%emt 00:05:18]} 19. Rc2
{[%clk 00:44:24]} {[%emt 00:02:02]} Qe5 {[%clk 00:21:21]} {[%emt 00:02:36]} 20.
Rfc1 {[%clk 00:41:26]} {[%emt 00:03:08]} Nc5 {[%clk 00:18:09]} {[%emt
00:03:23]} 21. Bc4 {[%clk 00:39:18]} {[%emt 00:02:18]} Ra8 {[%clk 00:16:10]}
{[%emt 00:02:09]} 22. Nf3 {[%clk 00:35:22]} {[%emt 00:04:06]} Qh5 {[%clk
00:15:45]} {[%emt 00:00:35]} 23. b4 {[%clk 00:32:50]} {[%emt 00:02:42]} Ncd7
{[%clk 00:12:45]} {[%emt 00:03:10]} 24. Nd4 {[%clk 00:31:24]} {[%emt 00:01:35]}
Ng4 {[%clk 00:12:27]} {[%emt 00:00:29]} 25. Nf3 {[%clk 00:28:48]} {[%emt
00:02:46]} Nde5 {[%clk 00:10:57]} {[%emt 00:01:40]} 26. Nh4 {[%clk 00:26:35]}
{[%emt 00:02:24]} g5 {[%clk 00:10:41]} {[%emt 00:00:25]} 27. f3 {[%clk
00:26:08]} {[%emt 00:00:36]} gxh4 {[%clk 00:10:10]} {[%emt 00:00:41]} 28. fxg4
{[%clk 00:25:58]} {[%emt 00:00:21]} Nxg4 {[%clk 00:10:05]} {[%emt 00:00:15]} 29.
e4 {[%clk 00:25:16]} {[%emt 00:00:53]} hxg3 {[%clk 00:08:46]} {[%emt 00:01:28]}
30. Qf3 {[%clk 00:21:32]} {[%emt 00:03:54]} Qh2+ {[%clk 00:07:36]} {[%emt
00:01:20]} 31. Kf1 {[%clk 00:21:37]} {[%emt 00:00:05]} Ne5 {[%clk 00:07:33]}
{[%emt 00:00:13]} 32. Qf4 {[%clk 00:20:59]} {[%emt 00:00:48]} Nxc4 {[%clk
00:06:24]} {[%emt 00:01:19]} 33. Ne2 {[%clk 00:19:48]} {[%emt 00:01:20]} f5
{[%clk 00:05:17]} {[%emt 00:01:18]} 34. Rxc4 {[%clk 00:17:36]} {[%emt
00:02:22]} fxe4 {[%clk 00:05:16]} {[%emt 00:00:10]} 35. Ke1 {[%clk 00:17:28]}
{[%emt 00:00:18]} Rxf4 {[%clk 00:05:03]} {[%emt 00:00:25]} 36. Nxf4 {[%clk
00:17:31]} {[%emt 00:00:06]} Qg1+ {[%clk 00:04:56]} {[%emt 00:00:16]} 37. Kd2
{[%clk 00:17:23]} {[%emt 00:00:19]} Rd8+ {[%clk 00:04:54]} {[%emt 00:00:12]} 38.
Kc2 {[%clk 00:16:46]} {[%emt 00:00:46]} Qf2+ {[%clk 00:05:00]} {[%emt
00:00:05]} 0-1